[Event "December 19 Late 2023"]
[Site "https://www.chess.com"]
[Date "2023.12.19"]
[Round "2"]
[White "Van Roon, Sjoerd"]
[Black "Feliz Dotel, Dewar Bienvenido"]
[Result "1/2-1/2"]
[Board "165"]
[TimeControl "180+1"]
[WhiteFideId "1051075"]
[BlackFideId "6402801"]
[WhiteElo "2180"]
[BlackElo "2069"]
[WhiteTeam "NED"]
[BlackTeam "DOM"]
[WhiteClock "0:01:26"]
[BlackClock "0:00:11"]

1. e4 {[%clk 0:03:00]}  c6 {[%clk 0:02:58]} 2. d4 {[%clk 0:03:00]}  d5 {[%clk 0:02:59]} 3. e5 {[%clk 0:03:00]}  Bf5 {[%clk 0:02:58]} 4. Nf3 {[%clk 0:03:01]}  e6 {[%clk 0:02:55]} 5. Be2 {[%clk 0:03:01]}  c5 {[%clk 0:02:53]} 6. Be3 {[%clk 0:03:01]}  Nc6 {[%clk 0:02:52]} 7. dxc5 {[%clk 0:02:59]}  Qa5+ {[%clk 0:02:50]} 8. c3 {[%clk 0:02:58]}  Qc7 {[%clk 0:02:41]} 9. Bd4 {[%clk 0:02:52]}  Bg4 {[%clk 0:02:38]} 10. O-O {[%clk 0:02:47]}  Bxf3 {[%clk 0:02:35]} 11. Bxf3 {[%clk 0:02:48]}  Nxe5 {[%clk 0:02:35]} 12. Bxe5 {[%clk 0:02:48]}  Qxe5 {[%clk 0:02:35]} 13. Qa4+ {[%clk 0:02:48]}  Kd8 {[%clk 0:02:29]} 14. Qa5+ {[%clk 0:02:47]}  Qc7 {[%clk 0:02:27]} 15. Qxc7+ {[%clk 0:02:45]}  Kxc7 {[%clk 0:02:27]} 16. b4 {[%clk 0:02:46]}  Nf6 {[%clk 0:02:23]} 17. Na3 {[%clk 0:02:45]}  a6 {[%clk 0:02:23]} 18. Nc2 {[%clk 0:02:45]}  Be7 {[%clk 0:02:18]} 19. Rfe1 {[%clk 0:02:45]}  Rhc8 {[%clk 0:02:16]} 20. Rad1 {[%clk 0:02:43]}  a5 {[%clk 0:02:08]} 21. a3 {[%clk 0:02:41]}  axb4 {[%clk 0:02:07]} 22. axb4 {[%clk 0:02:41]}  b6 {[%clk 0:01:59]} 23. Ne3 {[%clk 0:02:28]}  bxc5 {[%clk 0:01:57]} 24. Nxd5+ {[%clk 0:02:25]}  Nxd5 {[%clk 0:01:51]} 25. Bxd5 {[%clk 0:02:25]}  Ra3 {[%clk 0:01:50]} 26. Rc1 {[%clk 0:02:13]}  Kd8 {[%clk 0:01:42]} 27. Be4 {[%clk 0:02:07]}  cxb4 {[%clk 0:01:41]} 28. Red1+ {[%clk 0:02:02]}  Ke8 {[%clk 0:01:34]} 29. cxb4 {[%clk 0:02:01]}  Rxc1 {[%clk 0:01:31]} 30. Rxc1 {[%clk 0:02:02]}  Bxb4 {[%clk 0:01:29]} 31. h3 {[%clk 0:01:57]}  g6 {[%clk 0:01:28]} 32. Rc8+ {[%clk 0:01:56]}  Ke7 {[%clk 0:01:27]} 33. Rh8 {[%clk 0:01:57]}  h5 {[%clk 0:01:27]} 34. Kh2 {[%clk 0:01:53]}  Ra2 {[%clk 0:01:23]} 35. f3 {[%clk 0:01:44]}  Bd6+ {[%clk 0:01:20]} 36. Kg1 {[%clk 0:01:44]}  Bc5+ {[%clk 0:01:09]} 37. Kh2 {[%clk 0:01:43]}  Bf2 {[%clk 0:01:05]} 38. Rb8 {[%clk 0:01:41]}  h4 {[%clk 0:01:03]} 39. Rb7+ {[%clk 0:01:39]}  Kf6 {[%clk 0:01:02]} 40. Kh1 {[%clk 0:01:37]}  Ra1+ {[%clk 0:01:00]} 41. Rb1 {[%clk 0:01:36]}  Rxb1+ {[%clk 0:00:53]} 42. Bxb1 {[%clk 0:01:37]}  Ke5 {[%clk 0:00:53]} 43. Ba2 {[%clk 0:01:34]}  Kf4 {[%clk 0:00:52]} 44. Bc4 {[%clk 0:01:33]}  Kf5 {[%clk 0:00:48]} 45. Bd3+ {[%clk 0:01:32]}  Kf6 {[%clk 0:00:47]} 46. Bb5 {[%clk 0:01:31]}  e5 {[%clk 0:00:46]} 47. Bc4 {[%clk 0:01:32]}  Ke7 {[%clk 0:00:42]} 48. Bd5 {[%clk 0:01:29]}  f5 {[%clk 0:00:41]} 49. Kh2 {[%clk 0:01:26]}  Kd6 {[%clk 0:00:39]} 50. Bf7 {[%clk 0:01:26]}  g5 {[%clk 0:00:30]} 51. Bg6 {[%clk 0:01:25]}  Ke6 {[%clk 0:00:30]} 52. Bh7 {[%clk 0:01:25]}  Kf6 {[%clk 0:00:30]} 53. Kh1 {[%clk 0:01:26]}  Ke6 {[%clk 0:00:16]} 54. Kh2 {[%clk 0:01:25]}  Kf6 {[%clk 0:00:14]} 55. Kh1 {[%clk 0:01:25]}  Be3 {[%clk 0:00:12]} 56. Kh2 {[%clk 0:01:25]}  Ke6 {[%clk 0:00:11]} 57. Kh1 {[%clk 0:01:25]}  Bf2 {[%clk 0:00:11]} 58. Kh2 {[%clk 0:01:26]} 1/2-1/2

[Event "December 19 Late 2023"]
[Site "https://www.chess.com"]
[Date "2023.12.19"]
[Round "2"]
[White "Harrington, Steve"]
[Black "Mazurkiewicz, Michal"]
[Result "0-1"]
[Board "166"]
[TimeControl "180+1"]
[WhiteFideId "2038730"]
[BlackFideId "1124943"]
[WhiteElo "2160"]
[BlackElo "2103"]
[WhiteTeam "USA"]
[BlackTeam "POL"]
[WhiteClock "0:00:18"]
[BlackClock "0:00:09"]

1. e4 {[%clk 0:03:00]}  d6 {[%clk 0:02:59]} 2. d3 {[%clk 0:03:00]}  g6 {[%clk 0:02:59]} 3. Be2 {[%clk 0:03:00]}  Bg7 {[%clk 0:03:00]} 4. f4 {[%clk 0:03:00]}  c5 {[%clk 0:03:00]} 5. Nf3 {[%clk 0:03:01]}  Nc6 {[%clk 0:03:01]} 6. c3 {[%clk 0:03:01]}  e6 {[%clk 0:03:02]} 7. O-O {[%clk 0:03:01]}  Nge7 {[%clk 0:03:02]} 8. Qc2 {[%clk 0:03:01]}  O-O {[%clk 0:03:03]} 9. a4 {[%clk 0:03:02]}  a6 {[%clk 0:03:02]} 10. Be3 {[%clk 0:03:01]}  Rb8 {[%clk 0:02:59]} 11. Nbd2 {[%clk 0:03:01]}  b5 {[%clk 0:02:59]} 12. axb5 {[%clk 0:03:02]}  axb5 {[%clk 0:03:00]} 13. Kh1 {[%clk 0:03:01]}  b4 {[%clk 0:03:00]} 14. d4 {[%clk 0:02:58]}  bxc3 {[%clk 0:03:00]} 15. bxc3 {[%clk 0:02:58]}  cxd4 {[%clk 0:03:00]} 16. cxd4 {[%clk 0:02:57]}  d5 {[%clk 0:02:57]} 17. Ne5 {[%clk 0:02:45]}  Nxe5 {[%clk 0:02:49]} 18. fxe5 {[%clk 0:02:44]}  Bb7 {[%clk 0:02:45]} 19. Bf3 {[%clk 0:02:43]}  dxe4 {[%clk 0:02:39]} 20. Bxe4 {[%clk 0:02:29]}  Nd5 {[%clk 0:02:37]} 21. Bg1 {[%clk 0:02:25]}  Qd7 {[%clk 0:02:32]} 22. Ra7 {[%clk 0:02:19]}  Rfc8 {[%clk 0:02:26]} 23. Qd3 {[%clk 0:02:12]}  Nb4 {[%clk 0:02:11]} 24. Qf3 {[%clk 0:01:42]}  Rc7 {[%clk 0:01:47]} 25. Bxb7 {[%clk 0:01:28]}  Rcxb7 {[%clk 0:01:47]} 26. Rxb7 {[%clk 0:01:25]}  Qxb7 {[%clk 0:01:40]} 27. Ne4 {[%clk 0:01:18]}  Nd5 {[%clk 0:01:14]} 28. h4 {[%clk 0:01:14]}  Qe7 {[%clk 0:01:10]} 29. Qh3 {[%clk 0:01:08]}  h6 {[%clk 0:01:09]} 30. h5 {[%clk 0:01:05]}  g5 {[%clk 0:01:07]} 31. Qf3 {[%clk 0:01:02]}  Rf8 {[%clk 0:00:54]} 32. Bh2 {[%clk 0:00:54]}  Qb4 {[%clk 0:00:49]} 33. Nf6+ {[%clk 0:00:51]}  Bxf6 {[%clk 0:00:45]} 34. exf6 {[%clk 0:00:52]}  Qxd4 {[%clk 0:00:45]} 35. Rd1 {[%clk 0:00:51]}  Qxf6 {[%clk 0:00:44]} 36. Qe2 {[%clk 0:00:44]}  Nf4 {[%clk 0:00:29]} 37. Qf3 {[%clk 0:00:44]}  Qf5 {[%clk 0:00:20]} 38. Rf1 {[%clk 0:00:43]}  Nxh5 {[%clk 0:00:12]} 39. Qd1 {[%clk 0:00:36]}  Qg6 {[%clk 0:00:12]} 40. Be5 {[%clk 0:00:36]}  Ng7 {[%clk 0:00:10]} 41. Bb2 {[%clk 0:00:36]}  Qh5+ {[%clk 0:00:10]} 42. Kg1 {[%clk 0:00:35]}  Qxd1 {[%clk 0:00:10]} 43. Rxd1 {[%clk 0:00:33]}  Nf5 {[%clk 0:00:11]} 44. Rd7 {[%clk 0:00:34]}  Kh7 {[%clk 0:00:11]} 45. Kf2 {[%clk 0:00:33]}  Kg6 {[%clk 0:00:11]} 46. Kf3 {[%clk 0:00:32]}  Rb8 {[%clk 0:00:10]} 47. Ba1 {[%clk 0:00:29]}  Rb3+ {[%clk 0:00:10]} 48. Ke2 {[%clk 0:00:28]}  Ra3 {[%clk 0:00:09]} 49. Be5 {[%clk 0:00:26]}  Ra2+ {[%clk 0:00:09]} 50. Kf3 {[%clk 0:00:26]}  Ra3+ {[%clk 0:00:09]} 51. Ke2 {[%clk 0:00:18]}  Re3+ {[%clk 0:00:09]} 0-1

[Event "December 19 Late 2023"]
[Site "https://www.chess.com"]
[Date "2023.12.19"]
[Round "2"]
[White "Sivakumar, Shaashwath"]
[Black "Vargas Rodriguez, Wilver"]
[Result "1-0"]
[Board "171"]
[TimeControl "180+1"]
[WhiteFideId "30912156"]
[BlackFideId "3509672"]
[WhiteElo "2137"]
[BlackElo "2210"]
[WhiteTeam "USA"]
[BlackTeam "CUB"]
[WhiteClock "0:00:34"]
[BlackClock "0:00:00"]

1. d4 {[%clk 0:03:00]}  Nf6 {[%clk 0:02:55]} 2. c4 {[%clk 0:03:00]}  e6 {[%clk 0:02:53]} 3. g3 {[%clk 0:02:54]}  d5 {[%clk 0:02:53]} 4. Nf3 {[%clk 0:02:54]}  Nc6 {[%clk 0:02:50]} 5. Bg2 {[%clk 0:02:53]}  dxc4 {[%clk 0:02:50]} 6. Qa4 {[%clk 0:02:38]}  Bb4+ {[%clk 0:02:47]} 7. Bd2 {[%clk 0:02:37]}  Bd6 {[%clk 0:02:36]} 8. Qxc4 {[%clk 0:02:34]}  O-O {[%clk 0:02:36]} 9. O-O {[%clk 0:02:34]}  Rb8 {[%clk 0:02:37]} 10. Nc3 {[%clk 0:02:33]}  Nb4 {[%clk 0:02:36]} 11. a3 {[%clk 0:02:19]}  Nbd5 {[%clk 0:02:30]} 12. Rfd1 {[%clk 0:02:12]}  a6 {[%clk 0:02:28]} 13. Rac1 {[%clk 0:02:08]}  b5 {[%clk 0:02:28]} 14. Qd3 {[%clk 0:02:07]}  Nxc3 {[%clk 0:02:27]} 15. Rxc3 {[%clk 0:02:04]}  Bb7 {[%clk 0:02:28]} 16. Bg5 {[%clk 0:02:01]}  h6 {[%clk 0:02:21]} 17. Bxf6 {[%clk 0:01:59]}  Qxf6 {[%clk 0:02:21]} 18. e4 {[%clk 0:01:55]}  e5 {[%clk 0:01:50]} 19. d5 {[%clk 0:01:39]}  g6 {[%clk 0:01:40]} 20. Rdc1 {[%clk 0:01:36]}  Qe7 {[%clk 0:01:38]} 21. Qe3 {[%clk 0:01:35]}  Kg7 {[%clk 0:01:36]} 22. Nd2 {[%clk 0:01:22]}  f5 {[%clk 0:01:33]} 23. Nb3 {[%clk 0:01:15]}  f4 {[%clk 0:01:33]} 24. Qa7 {[%clk 0:01:13]}  Qf7 {[%clk 0:01:10]} 25. Na5 {[%clk 0:01:09]}  fxg3 {[%clk 0:01:09]} 26. hxg3 {[%clk 0:00:57]}  Ra8 {[%clk 0:00:40]} 27. Qxb7 {[%clk 0:00:55]}  Qxf2+ {[%clk 0:00:40]} 28. Kh2 {[%clk 0:00:56]}  h5 {[%clk 0:00:16]} 29. Rxc7+ {[%clk 0:00:54]}  Bxc7 {[%clk 0:00:16]} 30. Rxc7+ {[%clk 0:00:54]}  Kh6 {[%clk 0:00:17]} 31. Rh7+ {[%clk 0:00:54]}  Kg5 {[%clk 0:00:17]} 32. Qe7+ {[%clk 0:00:52]}  Qf6 {[%clk 0:00:11]} 33. Qd7 {[%clk 0:00:36]}  Rh8 {[%clk 0:00:00]} 34. Qh3 {[%clk 0:00:34]} 1-0

[Event "December 19 Late 2023"]
[Site "https://www.chess.com"]
[Date "2023.12.19"]
[Round "2"]
[White "Clarke, Adani"]
[Black "Rengifo Blancas, Renzo Jhonathan"]
[Result "1-0"]
[Board "173"]
[TimeControl "180+1"]
[WhiteFideId "7402082"]
[BlackFideId "3807185"]
[WhiteElo "1691"]
[BlackElo "2040"]
[WhiteTeam "JAM"]
[BlackTeam "PER"]
[WhiteClock "0:01:09"]
[BlackClock "0:00:00"]

1. d4 {[%clk 0:03:00]}  c6 {[%clk 0:03:00]} 2. c4 {[%clk 0:02:58]}  d5 {[%clk 0:01:44]} 3. Nc3 {[%clk 0:02:55]}  Nf6 {[%clk 0:01:33]} 4. Bg5 {[%clk 0:02:53]}  Ne4 {[%clk 0:01:20]} 5. Bf4 {[%clk 0:02:48]}  Qa5 {[%clk 0:01:19]} 6. Qc2 {[%clk 0:02:46]}  Bf5 {[%clk 0:01:17]} 7. Qb3 {[%clk 0:02:40]}  dxc4 {[%clk 0:01:15]} 8. Qxc4 {[%clk 0:02:38]}  e6 {[%clk 0:01:07]} 9. Bxb8 {[%clk 0:02:33]}  Bb4 {[%clk 0:00:59]} 10. Be5 {[%clk 0:02:19]}  Nxc3 {[%clk 0:00:57]} 11. bxc3 {[%clk 0:02:18]}  Bxc3+ {[%clk 0:00:57]} 12. Kd1 {[%clk 0:02:18]}  Bxa1 {[%clk 0:00:57]} 13. f3 {[%clk 0:02:13]}  f6 {[%clk 0:00:52]} 14. e4 {[%clk 0:02:11]}  Rd8 {[%clk 0:00:46]} 15. Bd3 {[%clk 0:01:56]}  fxe5 {[%clk 0:00:29]} 16. exf5 {[%clk 0:01:55]}  O-O {[%clk 0:00:29]} 17. fxe6 {[%clk 0:01:50]}  Rxd4 {[%clk 0:00:22]} 18. e7+ {[%clk 0:01:30]}  Rd5 {[%clk 0:00:17]} 19. exf8=Q+ {[%clk 0:01:27]}  Kxf8 {[%clk 0:00:18]} 20. Ne2 {[%clk 0:01:20]}  b5 {[%clk 0:00:16]} 21. Qc2 {[%clk 0:01:15]}  Bd4 {[%clk 0:00:00]} 22. Qxc6 {[%clk 0:01:09]} 1-0

[Event "December 19 Late 2023"]
[Site "https://www.chess.com"]
[Date "2023.12.19"]
[Round "2"]
[White "Ivanov, Aleksandr"]
[Black "Federzoni, Enzo"]
[Result "0-1"]
[Board "177"]
[TimeControl "180+1"]
[WhiteFideId "2092980"]
[BlackFideId "2173301"]
[WhiteElo "2098"]
[BlackElo "2053"]
[WhiteTeam "USA"]
[BlackTeam "BRA"]
[WhiteClock "0:00:00"]
[BlackClock "0:00:18"]

1. d4 {[%clk 0:02:57]}  Nf6 {[%clk 0:02:57]} 2. c4 {[%clk 0:02:57]}  e6 {[%clk 0:02:58]} 3. Nc3 {[%clk 0:02:56]}  d5 {[%clk 0:02:59]} 4. cxd5 {[%clk 0:02:55]}  exd5 {[%clk 0:03:00]} 5. Bg5 {[%clk 0:02:54]}  Be7 {[%clk 0:02:59]} 6. e3 {[%clk 0:02:54]}  O-O {[%clk 0:03:00]} 7. Bd3 {[%clk 0:02:54]}  c6 {[%clk 0:03:00]} 8. Nge2 {[%clk 0:02:53]}  Nbd7 {[%clk 0:03:00]} 9. Qc2 {[%clk 0:02:51]}  Re8 {[%clk 0:03:00]} 10. O-O {[%clk 0:02:50]}  h6 {[%clk 0:02:57]} 11. Bh4 {[%clk 0:02:49]}  Ne4 {[%clk 0:02:55]} 12. Bxe7 {[%clk 0:02:48]}  Qxe7 {[%clk 0:02:56]} 13. Bxe4 {[%clk 0:02:48]}  dxe4 {[%clk 0:02:57]} 14. Ng3 {[%clk 0:02:45]}  Nf6 {[%clk 0:02:57]} 15. Rfd1 {[%clk 0:02:36]}  h5 {[%clk 0:02:56]} 16. h3 {[%clk 0:02:33]}  h4 {[%clk 0:02:56]} 17. Nge2 {[%clk 0:02:32]}  Nh7 {[%clk 0:02:45]} 18. d5 {[%clk 0:02:30]}  Ng5 {[%clk 0:02:44]} 19. Nf4 {[%clk 0:02:27]}  Bd7 {[%clk 0:02:13]} 20. Rd4 {[%clk 0:02:25]}  c5 {[%clk 0:02:12]} 21. Rdd1 {[%clk 0:02:19]}  Qd6 {[%clk 0:02:05]} 22. Qb3 {[%clk 0:02:09]}  b6 {[%clk 0:02:02]} 23. Nb5 {[%clk 0:02:05]}  Bxb5 {[%clk 0:01:57]} 24. Qxb5 {[%clk 0:02:05]}  Nh7 {[%clk 0:01:58]} 25. Qc6 {[%clk 0:01:56]}  Red8 {[%clk 0:01:56]} 26. Qb7 {[%clk 0:01:43]}  Nf6 {[%clk 0:01:51]} 27. Rd2 {[%clk 0:01:40]}  g5 {[%clk 0:01:47]} 28. Ne2 {[%clk 0:01:34]}  g4 {[%clk 0:01:47]} 29. Nf4 {[%clk 0:01:30]}  a6 {[%clk 0:01:31]} 30. Rad1 {[%clk 0:01:25]}  b5 {[%clk 0:01:28]} 31. Qc6 {[%clk 0:01:21]}  Kg7 {[%clk 0:01:25]} 32. b4 {[%clk 0:01:12]}  c4 {[%clk 0:01:23]} 33. a4 {[%clk 0:01:05]}  Qxc6 {[%clk 0:01:12]} 34. dxc6 {[%clk 0:01:04]}  Rxd2 {[%clk 0:01:12]} 35. Rxd2 {[%clk 0:01:04]}  Rc8 {[%clk 0:01:11]} 36. axb5 {[%clk 0:01:02]}  axb5 {[%clk 0:01:12]} 37. hxg4 {[%clk 0:00:59]}  Rxc6 {[%clk 0:01:09]} 38. g5 {[%clk 0:00:57]}  Ng4 {[%clk 0:01:08]} 39. Nd5 {[%clk 0:00:52]}  Ne5 {[%clk 0:01:04]} 40. Nc3 {[%clk 0:00:49]}  Rb6 {[%clk 0:01:04]} 41. Rd5 {[%clk 0:00:48]}  Nd3 {[%clk 0:01:00]} 42. Nxb5 {[%clk 0:00:28]}  Nxb4 {[%clk 0:01:00]} 43. Re5 {[%clk 0:00:20]}  Nd3 {[%clk 0:00:56]} 44. Rd5 {[%clk 0:00:20]}  Kg6 {[%clk 0:00:52]} 45. Nc3 {[%clk 0:00:19]}  Rb3 {[%clk 0:00:50]} 46. Nxe4 {[%clk 0:00:19]}  c3 {[%clk 0:00:50]} 47. Rxd3 {[%clk 0:00:19]}  Rb1+ {[%clk 0:00:48]} 48. Kh2 {[%clk 0:00:19]}  c2 {[%clk 0:00:46]} 49. Rd6+ {[%clk 0:00:17]}  Kf5 {[%clk 0:00:41]} 50. Nc3 {[%clk 0:00:14]}  c1=Q {[%clk 0:00:41]} 51. Nxb1 {[%clk 0:00:14]}  Qc7 {[%clk 0:00:37]} 52. g4+ {[%clk 0:00:11]}  Kxg5 {[%clk 0:00:36]} 53. f4+ {[%clk 0:00:09]}  Kxg4 {[%clk 0:00:33]} 54. Rd2 {[%clk 0:00:06]}  h3 {[%clk 0:00:25]} 55. Rf2 {[%clk 0:00:01]}  Qc1 {[%clk 0:00:19]} 56. Nd2 {[%clk 0:00:00]}  Qe1 {[%clk 0:00:18]} 0-1

[Event "December 19 Late 2023"]
[Site "https://www.chess.com"]
[Date "2023.12.19"]
[Round "2"]
[White "Xie, Bryan"]
[Black "Oliveira, Tiago Batista"]
[Result "1-0"]
[Board "178"]
[TimeControl "180+1"]
[WhiteFideId "30941296"]
[BlackFideId "2108291"]
[WhiteElo "2033"]
[BlackElo "1962"]
[WhiteTeam "USA"]
[BlackTeam "BRA"]
[WhiteClock "0:01:54"]
[BlackClock "0:00:00"]

1. e4 {[%clk 0:03:00]}  e5 {[%clk 0:02:58]} 2. Nf3 {[%clk 0:03:00]}  Nc6 {[%clk 0:02:58]} 3. d4 {[%clk 0:02:59]}  exd4 {[%clk 0:02:57]} 4. Nxd4 {[%clk 0:03:00]}  Nf6 {[%clk 0:02:56]} 5. Nc3 {[%clk 0:03:00]}  Bb4 {[%clk 0:02:56]} 6. Nxc6 {[%clk 0:03:00]}  bxc6 {[%clk 0:02:55]} 7. Bd3 {[%clk 0:02:59]}  O-O {[%clk 0:02:55]} 8. O-O {[%clk 0:02:59]}  d5 {[%clk 0:02:55]} 9. exd5 {[%clk 0:02:54]}  cxd5 {[%clk 0:02:55]} 10. Bd2 {[%clk 0:02:54]}  c6 {[%clk 0:02:54]} 11. a3 {[%clk 0:02:54]}  Bd6 {[%clk 0:02:53]} 12. Re1 {[%clk 0:02:49]}  Qc7 {[%clk 0:02:49]} 13. g3 {[%clk 0:02:49]}  Bg4 {[%clk 0:02:47]} 14. Be2 {[%clk 0:02:42]}  h5 {[%clk 0:02:24]} 15. Bg5 {[%clk 0:02:38]}  Bxe2 {[%clk 0:01:57]} 16. Nxe2 {[%clk 0:02:39]}  Ne4 {[%clk 0:01:47]} 17. Be3 {[%clk 0:02:29]}  h4 {[%clk 0:01:41]} 18. Qd3 {[%clk 0:02:25]}  hxg3 {[%clk 0:01:35]} 19. hxg3 {[%clk 0:02:18]}  Rfe8 {[%clk 0:01:03]} 20. c4 {[%clk 0:02:10]}  Rad8 {[%clk 0:00:24]} 21. cxd5 {[%clk 0:02:06]}  cxd5 {[%clk 0:00:22]} 22. Rac1 {[%clk 0:02:06]}  Qb7 {[%clk 0:00:20]} 23. b4 {[%clk 0:02:06]}  Be5 {[%clk 0:00:13]} 24. Bd4 {[%clk 0:02:05]}  Bxd4 {[%clk 0:00:12]} 25. Qxd4 {[%clk 0:02:05]}  Qb6 {[%clk 0:00:12]} 26. Qxb6 {[%clk 0:02:04]}  axb6 {[%clk 0:00:13]} 27. Nd4 {[%clk 0:02:02]}  Ra8 {[%clk 0:00:11]} 28. Nb5 {[%clk 0:02:01]}  Red8 {[%clk 0:00:08]} 29. Rc6 {[%clk 0:01:56]}  Rab8 {[%clk 0:00:06]} 30. f3 {[%clk 0:01:54]}  Nf6 {[%clk 0:00:06]} 31. Kf2 {[%clk 0:01:54]}  d4 {[%clk 0:00:06]} 32. Rd1 {[%clk 0:01:54]}  d3 {[%clk 0:00:05]} 33. Rd6 {[%clk 0:01:53]}  Rxd6 {[%clk 0:00:05]} 34. Nxd6 {[%clk 0:01:54]}  Ra8 {[%clk 0:00:04]} 35. Rxd3 {[%clk 0:01:54]}  Ne8 {[%clk 0:00:02]} 36. Nc4 {[%clk 0:01:53]}  b5 {[%clk 0:00:02]} 37. Nb6 {[%clk 0:01:54]}  Rb8 {[%clk 0:00:01]} 38. Nd7 {[%clk 0:01:54]}  Rc8 {[%clk 0:00:00]} 39. Nc5 {[%clk 0:01:54]} 1-0

[Event "December 19 Late 2023"]
[Site "https://www.chess.com"]
[Date "2023.12.19"]
[Round "2"]
[White "Chiquitita23"]
[Black "Lopusiewicz, Piotr"]
[Result "0-1"]
[Board "179"]
[TimeControl "180+1"]
[BlackFideId "1116029"]
[WhiteElo "2069"]
[BlackElo "2286"]
[BlackTeam "POL"]
[WhiteClock "0:00:05"]
[BlackClock "0:01:01"]

1. e4 {[%clk 0:02:59]}  c5 {[%clk 0:02:59]} 2. Nf3 {[%clk 0:02:58]}  e6 {[%clk 0:02:59]} 3. b3 {[%clk 0:02:56]}  Nc6 {[%clk 0:02:57]} 4. Bb2 {[%clk 0:02:55]}  a6 {[%clk 0:02:57]} 5. d4 {[%clk 0:02:53]}  cxd4 {[%clk 0:02:55]} 6. Nxd4 {[%clk 0:02:53]}  Nf6 {[%clk 0:02:52]} 7. Bd3 {[%clk 0:02:48]}  Nxd4 {[%clk 0:02:47]} 8. Bxd4 {[%clk 0:02:46]}  d6 {[%clk 0:02:39]} 9. O-O {[%clk 0:02:46]}  Be7 {[%clk 0:02:39]} 10. Nd2 {[%clk 0:02:44]}  Qc7 {[%clk 0:02:38]} 11. c4 {[%clk 0:02:43]}  b6 {[%clk 0:02:36]} 12. Qc2 {[%clk 0:02:42]}  Bb7 {[%clk 0:02:35]} 13. Nf3 {[%clk 0:02:40]}  O-O {[%clk 0:02:31]} 14. e5 {[%clk 0:02:40]}  dxe5 {[%clk 0:02:28]} 15. Bxe5 {[%clk 0:02:38]}  Qc5 {[%clk 0:02:09]} 16. b4 {[%clk 0:01:44]}  Qxb4 {[%clk 0:01:57]} 17. Bxf6 {[%clk 0:01:37]}  Bxf6 {[%clk 0:01:57]} 18. Rab1 {[%clk 0:01:29]}  Qc5 {[%clk 0:01:52]} 19. Bxh7+ {[%clk 0:01:27]}  Kh8 {[%clk 0:01:52]} 20. Be4 {[%clk 0:01:24]}  Bxe4 {[%clk 0:01:45]} 21. Qxe4 {[%clk 0:01:24]}  Rac8 {[%clk 0:01:41]} 22. h3 {[%clk 0:01:11]}  Rfd8 {[%clk 0:01:33]} 23. Rfc1 {[%clk 0:01:00]}  g6 {[%clk 0:01:29]} 24. a4 {[%clk 0:00:47]}  Kg7 {[%clk 0:01:27]} 25. Rb3 {[%clk 0:00:38]}  Rd6 {[%clk 0:01:17]} 26. Nh2 {[%clk 0:00:24]}  Rd4 {[%clk 0:01:13]} 27. Qe2 {[%clk 0:00:11]}  Rxc4 {[%clk 0:01:06]} 28. Rxc4 {[%clk 0:00:11]}  Qxc4 {[%clk 0:01:07]} 29. Qxc4 {[%clk 0:00:11]}  Rxc4 {[%clk 0:01:08]} 30. Rxb6 {[%clk 0:00:07]}  Rxa4 {[%clk 0:01:08]} 31. Ng4 {[%clk 0:00:07]}  Bd4 {[%clk 0:01:03]} 32. Kh2 {[%clk 0:00:05]}  Bxb6 {[%clk 0:01:01]} 0-1

[Event "December 19 Late 2023"]
[Site "https://www.chess.com"]
[Date "2023.12.19"]
[Round "2"]
[White "Balla, Tamas-Kristof"]
[Black "Ghosh, Chanchal Kumer"]
[Result "1-0"]
[Board "181"]
[TimeControl "180+1"]
[WhiteFideId "1208497"]
[BlackFideId "10201858"]
[WhiteElo "2306"]
[BlackElo "2067"]
[WhiteTeam "ROU"]
[BlackTeam "BAN"]
[WhiteClock "0:01:31"]
[BlackClock "0:00:00"]

1. e4 {[%clk 0:03:00]}  c5 {[%clk 0:02:55]} 2. c3 {[%clk 0:03:00]}  d5 {[%clk 0:02:54]} 3. exd5 {[%clk 0:03:00]}  Qxd5 {[%clk 0:02:55]} 4. d4 {[%clk 0:03:00]}  cxd4 {[%clk 0:02:55]} 5. cxd4 {[%clk 0:03:00]}  Nc6 {[%clk 0:02:54]} 6. Nf3 {[%clk 0:03:00]}  e5 {[%clk 0:02:52]} 7. Nc3 {[%clk 0:03:00]}  Bb4 {[%clk 0:02:51]} 8. Bd2 {[%clk 0:03:00]}  Bxc3 {[%clk 0:02:50]} 9. Bxc3 {[%clk 0:03:01]}  exd4 {[%clk 0:02:44]} 10. Nxd4 {[%clk 0:02:54]}  Nxd4 {[%clk 0:02:08]} 11. Qxd4 {[%clk 0:02:46]}  Qxd4 {[%clk 0:01:39]} 12. Bxd4 {[%clk 0:02:47]}  f6 {[%clk 0:01:31]} 13. Bb5+ {[%clk 0:02:46]}  Kf7 {[%clk 0:01:29]} 14. Rc1 {[%clk 0:02:34]}  Ne7 {[%clk 0:01:25]} 15. Rc7 {[%clk 0:02:28]}  a6 {[%clk 0:01:09]} 16. Bc4+ {[%clk 0:02:12]}  Be6 {[%clk 0:01:10]} 17. Bxe6+ {[%clk 0:02:07]}  Kxe6 {[%clk 0:01:11]} 18. O-O {[%clk 0:02:02]}  Nc6 {[%clk 0:00:54]} 19. Bc3 {[%clk 0:01:55]}  g6 {[%clk 0:00:24]} 20. Rxb7 {[%clk 0:01:54]}  Rhc8 {[%clk 0:00:23]} 21. Re1+ {[%clk 0:01:52]}  Kf5 {[%clk 0:00:22]} 22. Rxh7 {[%clk 0:01:50]}  Ra7 {[%clk 0:00:16]} 23. Rxa7 {[%clk 0:01:43]}  Nxa7 {[%clk 0:00:16]} 24. Re7 {[%clk 0:01:43]}  Nb5 {[%clk 0:00:16]} 25. Re3 {[%clk 0:01:39]}  g5 {[%clk 0:00:16]} 26. Rf3+ {[%clk 0:01:39]}  Kg4 {[%clk 0:00:13]} 27. h3+ {[%clk 0:01:39]}  Kh5 {[%clk 0:00:13]} 28. g4+ {[%clk 0:01:36]}  Kh4 {[%clk 0:00:09]} 29. Kg2 {[%clk 0:01:36]}  Rc6 {[%clk 0:00:08]} 30. Rxf6 {[%clk 0:01:33]}  Rxf6 {[%clk 0:00:06]} 31. Bxf6 {[%clk 0:01:33]}  Nd6 {[%clk 0:00:04]} 32. f4 {[%clk 0:01:31]}  Ne4 {[%clk 0:00:04]} 33. Bxg5+ {[%clk 0:01:32]}  Nxg5 {[%clk 0:00:03]} 34. fxg5 {[%clk 0:01:33]}  a5 {[%clk 0:00:02]} 35. g6 {[%clk 0:01:30]}  a4 {[%clk 0:00:00]} 36. g7 {[%clk 0:01:31]} 1-0